bitfinex-derivatives/quotes_SOLF0:USTF0_20250524
["timestamp","ask_amount","ask_price","bid_price","bid_amount"]
[1748082078415,5.6939,175.58,175.54,5.73206249]
[1748082078616,124.19392137,175.61,175.54,0.03726249]
[1748082079117,5.6942,175.57,175.54,0.03726249]
[1748082079617,113.6,175.61,175.54,0.03726249]
[1748082080321,5.6944,175.56,175.54,0.03726249]
[1748082082019,5.6946,175.55,175.54,0.03726249]
[1748082082721,5.6944,175.56,175.54,0.03726249]
[1748082084820,5.694,175.57,175.54,0.03726249]
[1748082087221,5.6944,175.56,175.54,0.03726249]
[1748082087720,5.6946,175.55,175.54,0.03726249]
[1748082088225,113.6,175.61,175.54,0.03726249]
[1748082089322,5.27262297,175.6,175.54,0.03726249]
[1748082089718,3.9673,175.59,175.54,0.03726249]
[1748082090325,5.6946,175.55,175.54,0.03726249]
[1748082090526,119.6346,175.55,175.54,0.03726249]
[1748082091818,5.6944,175.56,175.54,0.03726249]
[1748082092124,113.94,175.58,175.54,0.03726249]
[1748082093026,5.6946,175.55,175.54,0.03726249]
[1748082106845,5.6965,175.5,175.46,115.9255]
[1748082107039,113.96,175.53,175.46,115.9255]
[1748082107542,119.6555,175.53,175.49,5.6963]
[1748082107842,119.6555,175.53,175.46,115.9255]
[1748082108143,0.04023767,175.52,175.49,5.6963]
[1748082108735,0.04023767,175.52,175.48,0.03663199]
[1748082110540,5.6961,175.51,175.48,5.73343199]
[1748082112250,0.04023767,175.52,175.48,0.03663199]
[1748082112746,0.04023767,175.52,175.51,5.6959]
[1748082116944,0.04023767,175.52,175.49,2.93090733]
[1748082117754,5.6962,175.5,175.49,2.93090733]
[1748082117958,113.66023767,175.52,175.48,0.03663199]
[1748082118551,5.6965,175.49,175.48,0.03663199]
[1748082120560,113.66023767,175.52,175.48,0.03663199]
[1748082121655,5.6961,175.51,175.48,5.73343199]
[1748082121957,113.66023767,175.52,175.48,0.03663199]
[1748082123161,5.6965,175.5,175.48,0.03663199]
[1748082124260,5.6965,175.49,175.48,0.03663199]
[1748082124465,0.04023767,175.52,175.48,113.65663199]
[1748082124654,10.59392137,175.57,175.49,9.01522297]
[1748082125159,10.59392137,175.57,175.55,5.6946]
[1748082127165,5.6939,175.58,175.55,5.6946]
[1748082131065,5.6946,175.55,175.54,0.04263938]
[1748082131456,5.27262297,175.55,175.48,3.16163785]
[1748082131652,5.6962,175.5,175.48,3.16163785]
[1748082131855,113.6,175.53,175.48,3.16163785]
[1748082132058,5.6965,175.49,175.48,3.16163785]
[1748082133567,5.6969,175.48,175.47,0.04154929]
[1748082133761,0.04263938,175.5,175.47,0.04154929]
[1748082134568,0.04263938,175.5,175.47,5.73874929]
[1748082134969,0.04263938,175.5,175.47,0.04154929]
[1748082136677,5.6969,175.48,175.47,0.04154929]
[1748082142778,114.02,175.49,175.47,0.04154929]
[1748082142975,0.04263938,175.5,175.47,0.04154929]
[1748082143174,114.04,175.56,175.47,114.08154929]
[1748082143379,119.7344,175.56,175.48,3.8251]
[1748082143680,114.04,175.56,175.48,3.8251]
[1748082143980,16.28872137,175.55,175.51,5.6959]
[1748082144181,10.59392137,175.55,175.51,5.73445065]
[1748082145577,5.6949,175.54,175.51,5.73445065]
[1748082147182,114.04,175.56,175.51,0.03855065]
[1748082147381,114.02,175.59,175.51,0.03855065]
[1748082147685,114.02,175.59,175.53,0.03912895]
[1748082148184,5.694,175.57,175.54,5.6948]
[1748082149186,114.02,175.59,175.53,0.03912895]
[1748082150583,5.6945,175.56,175.53,0.03912895]
[1748082150985,114.02,175.59,175.53,0.03912895]
[1748082152885,5.6948,175.55,175.53,0.03912895]
[1748082155791,114.02,175.59,175.53,0.03912895]
[1748082157891,5.6943,175.56,175.53,5.73432895]
[1748082159486,3.9417,175.63,175.53,0.03912895]
[1748082159691,114.0,175.62,175.53,0.03912895]
[1748082159894,5.6932,175.6,175.56,5.6941]
[1748082160190,5.6932,175.6,175.56,5.73189542]
[1748082160991,5.6934,175.59,175.56,5.73189542]
[1748082162090,114.0,175.62,175.56,0.03779542]
[1748082162295,114.0,175.65,175.56,0.03779542]
[1748082162896,5.6929,175.61,175.57,5.6938]
[1748082163193,114.0,175.65,175.57,5.6938]
[1748082163599,5.27262297,175.6,175.56,0.03779542]
[1748082163798,114.0,175.59,175.56,0.03779542]
[1748082163995,5.6939,175.57,175.56,0.03779542]
[1748082174703,119.27262297,175.59,175.48,1.8912]
[1748082175201,5.6952,175.54,175.48,1.8912]
[1748082175597,0.03779542,175.53,175.49,0.04174722]
[1748082175797,5.73309542,175.53,175.49,5.73814722]
[1748082177001,0.03779542,175.53,175.49,0.04174722]
[1748082177504,5.6959,175.51,175.49,0.04174722]
[1748082180607,5.6962,175.5,175.49,0.04174722]
[1748082184513,0.03779542,175.53,175.49,0.04174722]
[1748082185009,5.6942,175.57,175.49,0.04174722]
[1748082185208,114.18,175.59,175.48,116.0712]
[1748082185408,5.6937,175.58,175.48,116.0712]
[1748082185910,5.6937,175.58,175.54,5.6947]
[1748082187213,5.6937,175.58,175.55,5.6946]
[1748082187512,5.6937,175.58,175.55,5.73639863]
[1748082188013,119.8735,175.59,175.56,5.6942]
[1748082188201,119.8735,175.59,175.55,0.04179863]
[1748082188202,114.18,175.59,175.55,0.04179863]
[1748082188516,119.45262297,175.62,175.55,0.04179863]
[1748082188706,5.6932,175.6,175.56,5.6941]
[1748082188906,119.45262297,175.62,175.56,5.6941]
[1748082189214,5.6933,175.59,175.55,5.73629863]
[1748082189415,5.6933,175.59,175.55,0.04179863]
[1748082189914,119.45262297,175.62,175.55,0.04179863]
[1748082189915,5.6931,175.6,175.55,0.04179863]
[1748082190119,114.18,175.62,175.55,0.04179863]
[1748082191016,114.18,175.62,175.55,5.73639863]
[1748082191617,5.6936,175.59,175.55,5.73639863]
[1748082192220,114.18,175.62,175.55,0.04179863]
[1748082193520,119.45262297,175.62,175.55,0.04179863]
[1748082194620,5.6943,175.56,175.55,0.04179863]
[1748082201920,5.694,175.57,175.55,0.04179863]
[1748082204024,5.6943,175.56,175.55,0.04179863]
[1748082206725,5.6941,175.57,175.55,0.04179863]
[1748082207023,113.64,175.58,175.55,0.04179863]
[1748082208627,5.6943,175.56,175.55,0.04179863]
[1748082209420,5.694,175.57,175.55,0.04179863]
[1748082210327,119.3337,175.58,175.55,5.73639863]
[1748082211225,12.46262137,175.63,175.55,0.04179863]
[1748082211528,124.23392137,175.63,175.55,0.04179863]
[1748082211924,5.6929,175.61,175.58,5.6934]
[1748082212124,124.23392137,175.63,175.58,0.04173576]
[1748082212730,118.91262297,175.63,175.58,0.04173576]
[1748082213531,5.6933,175.59,175.58,0.04173576]
[1748082214431,119.3333,175.59,175.58,0.04173576]
[1748082219936,119.3333,175.59,175.58,3.576e-05]
[1748082220134,5.6954,175.53,175.5,115.6369]
[1748082220445,113.64,175.59,175.5,1.9969]
[1748082220929,5.6951,175.54,175.5,1.9969]
[1748082221227,0.03747101,175.54,175.5,2.03453181]
[1748082221427,5.6959,175.51,175.5,0.03763181]
[1748082244462,0.03747101,175.54,175.5,0.03763181]
[1748082244762,5.6959,175.52,175.5,0.03763181]
[1748082245060,0.03747101,175.54,175.5,0.03763181]
[1748082245861,5.6959,175.51,175.5,0.03763181]
[1748082247264,0.03747101,175.54,175.5,0.03763181]
[1748082248366,0.03747101,175.54,175.51,5.6956]
[1748082249167,5.73237101,175.54,175.51,5.6956]
[1748082253870,0.03747101,175.54,175.51,5.6956]
[1748082255168,5.73237101,175.54,175.51,5.6956]
[1748082255365,0.03747101,175.54,175.5,0.03763181]
[1748082255673,3.36460653,175.51,175.5,0.03763181]
[1748082256560,3.36460653,175.51,175.44,5.08683785]
[1748082256762,3.36460653,175.48,175.44,5.08683785]
[1748082257362,5.6974,175.47,175.44,1.9252]
[1748082257568,5.73956726,175.47,175.44,1.96621616]
[1748082258072,0.04216726,175.47,175.44,7.66431616]
[1748082258971,0.04216726,175.47,175.45,5.6978]
[1748082259172,0.04216726,175.47,175.44,1.96621616]
[1748082259674,0.04216726,175.47,175.46,5.6975]
[1748082261482,12.50242137,175.56,175.44,1.96621616]
[1748082261775,10.59392137,175.56,175.45,5.26043775]
[1748082261981,16.28722137,175.59,175.46,113.62]
[1748082262275,10.59392137,175.59,175.48,5.26043775]
[1748082262467,0.03712706,175.55,175.52,0.04086879]
[1748082262667,10.59392137,175.59,175.57,5.6937]
[1748082264880,10.59392137,175.59,175.56,0.03652699]
[1748082265071,5.26043775,175.62,175.56,0.03652699]
[1748082265274,113.62,175.63,175.56,0.03652699]
[1748082265479,5.26043775,175.65,175.56,0.03652699]
[1748082265774,5.6916,175.65,175.61,5.6925]
[1748082266080,113.6,175.66,175.59,0.03600732]
[1748082268376,5.6928,175.61,175.59,0.03600732]
[1748082269381,5.693,175.6,175.59,0.03600732]
[1748082272384,5.693,175.6,175.59,7.32e-06]
[1748082272681,5.695,175.54,175.49,113.58]
[1748082273289,5.6947,175.55,175.49,113.58]
[1748082273488,0.03608057,175.54,175.5,0.03901638]
[1748082274289,0.03608057,175.54,175.51,5.6957]
[1748082276391,0.03608057,175.54,175.53,5.6952]
[1748082277094,5.6934,175.59,175.56,5.6941]
[1748082277285,113.58,175.61,175.56,5.6941]
[1748082277593,5.6934,175.59,175.56,5.6941]
[1748082277891,5.6934,175.59,175.55,5.6945]
[1748082278093,5.6936,175.58,175.55,5.73102134]
[1748082283897,5.694,175.57,175.55,0.03652134]
[1748082284494,113.58,175.61,175.55,0.03652134]
[1748082284700,113.58,175.61,175.55,5.73102134]
[1748082285198,5.6937,175.58,175.55,5.73102134]
[1748082285400,5.6937,175.58,175.55,0.03652134]
[1748082286798,113.58,175.61,175.55,0.03652134]
[1748082287096,118.84043775,175.61,175.55,0.03652134]
[1748082287399,5.6941,175.57,175.55,0.03652134]
[1748082289502,5.6943,175.56,175.55,0.03652134]
[1748082291701,113.58,175.61,175.55,0.03652134]
[1748082293105,5.6935,175.59,175.56,5.6942]
[1748082293505,113.58,175.61,175.55,0.03652134]
[1748082293714,119.2727,175.61,175.58,5.6935]
[1748082293902,5.6927,175.61,175.58,5.6935]
[1748082294106,5.693,175.6,175.57,5.6938]
[1748082294405,113.56,175.64,175.57,0.04157783]
[1748082294906,5.6933,175.6,175.57,5.73547783]
[1748082295404,5.6933,175.59,175.57,0.04157783]
[1748082295605,113.56,175.64,175.57,0.04157783]
[1748082296408,5.6936,175.58,175.57,0.04157783]
[1748082299010,5.6934,175.59,175.57,0.04157783]
[1748082299414,5.26043775,175.63,175.57,0.04157783]
[1748082300304,5.6936,175.58,175.57,0.04157783]
[1748082302613,5.6955,175.53,175.5,113.56]
[1748082302906,5.6955,175.53,175.49,2.9324427]
[1748082303513,5.6955,175.53,175.49,8.6288427]
[1748082303815,5.6956,175.52,175.49,5.73457978]
[1748082304620,0.04033068,175.53,175.49,0.03817978]
[1748082307617,5.6956,175.52,175.49,0.03817978]
[1748082308318,0.04033068,175.53,175.49,0.03817978]
[1748082309719,5.6962,175.5,175.49,0.03817978]
[1748082312420,5.6959,175.52,175.49,0.03817978]
[1748082312620,0.04033068,175.53,175.49,0.03817978]
[1748082313019,5.6957,175.52,175.49,5.73447978]
[1748082313220,0.04033068,175.53,175.49,0.03817978]
[1748082313815,0.04033068,175.53,175.5,5.696]
[1748082314421,0.04033068,175.53,175.49,0.03817978]
[1748082314617,5.73563068,175.53,175.49,0.03817978]
[1748082314919,0.04033068,175.53,175.51,5.6958]
[1748082315418,0.04033068,175.53,175.49,0.03817978]
[1748082315720,5.73573068,175.53,175.5,5.6961]
[1748082315921,0.04033068,175.53,175.5,5.6961]
[1748082316420,5.73563068,175.53,175.5,5.6961]
[1748082317119,5.73563068,175.53,175.49,5.73467978]
[1748082318725,5.73563068,175.53,175.5,5.6962]
[1748082319226,5.73563068,175.53,175.49,0.03817978]
[1748082319422,0.04033068,175.53,175.49,0.03817978]
[1748082319623,113.6,175.52,175.49,0.03817978]
[1748082319826,5.6962,175.5,175.49,0.03817978]
[1748082322027,5.6979,175.45,175.42,113.6]
[1748082322222,5.6979,175.45,175.4,3.16163785]
[1748082322526,5.6979,175.45,175.41,5.6989]
[1748082322920,5.6979,175.45,175.42,5.6987]
[1748082323121,5.73943329,175.45,175.42,5.6987]
[1748082323424,0.04153329,175.45,175.41,0.0425932]
[1748082324426,5.6984,175.44,175.41,0.0425932]
[1748082326622,5.6984,175.44,175.41,5.7416932]
[1748082326927,5.73943329,175.45,175.41,5.7416932]
[1748082329230,5.73943329,175.45,175.42,5.6987]
[1748082330737,5.6982,175.44,175.41,5.7416932]
[1748082330935,0.04153329,175.45,175.41,5.7416932]
[1748082331235,5.73953329,175.45,175.41,5.7416932]
[1748082331831,5.73953329,175.45,175.42,5.6988]
[1748082332033,0.04153329,175.45,175.41,0.0425932]
[1748082332537,0.04153329,175.45,175.44,5.6982]
[1748082334436,0.04153329,175.45,175.41,0.0425932]
[1748082335042,5.6984,175.44,175.41,0.0425932]
[1748082335840,0.04153329,175.45,175.41,0.0425932]
[1748082336440,5.6986,175.43,175.41,0.0425932]
[1748082336743,5.6988,175.42,175.41,0.0425932]
[1748082341040,10.95923775,175.42,175.41,9.32e-05]
[1748082341238,5.7003,175.38,175.35,1.9286]
[1748082341552,113.64,175.4,175.35,1.9286]
[1748082341948,113.64,175.4,175.33,113.64]
[1748082342247,113.64,175.4,175.35,0.03934283]
[1748082342248,0.04012083,175.38,175.35,0.03934283]
[1748082343348,5.7007,175.37,175.35,0.03934283]
[1748082343742,0.04012083,175.38,175.35,0.03934283]
[1748082344954,0.04012083,175.38,175.36,5.7006]
[1748082347753,5.74032083,175.38,175.35,5.74034283]
[1748082350052,0.04012083,175.38,175.36,5.7007]
[1748082351361,113.68,175.43,175.35,0.03934283]
[1748082351561,499.72333775,175.51,175.36,5.26043775]
[1748082351864,5.6973,175.47,175.37,117.6085]
[1748082352354,0.04097721,175.44,175.43,5.6982]
[1748082353466,5.6967,175.49,175.45,5.6978]
[1748082353760,5.6939,175.58,175.48,5.26043775]
[1748082353948,14.11653849,175.6,175.56,5.6942]
[1748082354655,14.15432198,175.6,175.57,5.6937]
[1748082354855,14.15432198,175.6,175.56,0.03947338]
[1748082355064,0.03778349,175.6,175.56,0.03947338]
[1748082356151,0.03778349,175.6,175.56,5.73367338]
[1748082359662,0.03778349,175.6,175.56,7.62917338]
[1748082360059,0.03778349,175.6,175.57,5.6937]
[1748082360764,0.03778349,175.6,175.56,7.62917338]
[1748082362666,5.73088349,175.6,175.56,1.93497338]
[1748082364765,0.03778349,175.6,175.56,1.93497338]
[1748082365160,0.03778349,175.6,175.57,113.56]
[1748082365664,0.03778349,175.6,175.59,5.6933]
[1748082365859,5.6914,175.65,175.59,5.6933]
[1748082366465,5.6918,175.64,175.59,5.6933]
[1748082366970,113.56,175.68,175.6,0.03960787]
[1748082367765,5.6926,175.61,175.6,0.03960787]
[1748082377061,5.6945,175.56,175.53,113.54]
[1748082377267,5.6945,175.56,175.5,119.5633]
[1748082377566,5.6945,175.56,175.52,5.6955]
[1748082378076,5.73257037,175.56,175.52,5.73876068]
[1748082378973,0.03807037,175.56,175.52,5.73876068]
[1748082379476,0.03807037,175.56,175.52,0.04326068]
[1748082380176,5.6951,175.54,175.52,0.04326068]
[1748082381877,5.73267037,175.56,175.52,0.04326068]
[1748082382077,0.03807037,175.56,175.52,0.04326068]
[1748082383674,5.6951,175.54,175.52,0.04326068]
[1748082383877,0.03807037,175.56,175.52,0.04326068]
[1748082384078,113.75807037,175.56,175.52,0.04326068]
[1748082384676,5.6952,175.53,175.52,0.04326068]
[1748082387478,5.6948,175.55,175.52,0.04326068]
[1748082387777,0.03807037,175.56,175.52,0.04326068]
[1748082388080,5.73247037,175.56,175.52,0.04326068]
[1748082389581,5.73247037,175.56,175.52,5.73866068]
[1748082389881,5.6946,175.55,175.52,0.04326068]
[1748082390685,5.6949,175.54,175.52,0.04326068]
[1748082391074,0.03807037,175.56,175.52,0.04326068]
[1748082391482,5.6949,175.54,175.52,0.04326068]
[1748082391883,0.03807037,175.56,175.52,0.04326068]
[1748082392681,5.6951,175.54,175.52,0.04326068]
[1748082395287,5.6952,175.53,175.52,0.04326068]
[1748082395488,113.74,175.53,175.42,115.6421]
[1748082396090,5.6964,175.5,175.46,5.6975]
[1748082396291,113.74,175.53,175.44,1.9205]
[1748082396494,0.03662578,175.48,175.45,0.04271382]
[1748082396696,5.73352578,175.48,175.45,0.04271382]
[1748082397497,0.03662578,175.48,175.45,0.04271382]
[1748082398091,113.74,175.53,175.45,1.97971382]
[1748082398291,120.96123775,175.56,175.5,5.6962]
[1748082398590,5.6951,175.54,175.5,5.6962]
[1748082398790,120.96123775,175.56,175.46,116.67197639]
[1748082398993,5.7390782,175.53,175.49,0.03851926]
[1748082399500,5.7390782,175.53,175.49,5.73481926]
[1748082399806,0.0435782,175.53,175.49,0.03851926]
[1748082400100,0.0435782,175.53,175.5,5.696]
[1748082400696,5.7388782,175.53,175.5,5.696]
[1748082400891,0.0435782,175.53,175.49,0.03851926]
[1748082402601,5.6962,175.5,175.49,0.03851926]
[1748082403102,5.6959,175.52,175.49,0.03851926]
[1748082403607,5.696,175.51,175.49,0.03851926]
[1748082406803,5.6956,175.52,175.49,0.03851926]
[1748082407105,0.0435782,175.53,175.49,0.03851926]
[1748082408810,5.6962,175.5,175.49,0.03851926]
[1748082409213,5.696,175.51,175.49,0.03851926]
[1748082409711,5.6962,175.5,175.49,0.03851926]
[1748082410009,113.74,175.52,175.49,0.03851926]
[1748082410212,5.6961,175.51,175.49,0.03851926]
[1748082411510,5.6962,175.5,175.49,0.03851926]
[1748082416213,5.6982,175.44,175.43,2.93792812]
[1748082416412,5.6982,175.44,175.4,5.6993]
[1748082416601,113.96,175.46,175.4,5.6993]
[1748082417012,0.03722147,175.45,175.41,0.03885268]
[1748082417209,5.6984,175.44,175.41,5.73795268]
[1748082417517,0.03722147,175.45,175.41,5.73795268]
[1748082417814,5.73522147,175.45,175.41,5.73795268]
[1748082419114,5.6982,175.44,175.41,5.73795268]
[1748082420611,0.03722147,175.45,175.41,0.03885268]
[1748082421101,0.03722147,175.45,175.44,5.6982]
[1748082427406,2.147e-05,175.45,175.44,5.6982]
[1748082427611,2.147e-05,175.45,175.44,11.3982]
[1748082428510,2.147e-05,175.45,175.44,14.34118364]
[1748082430913,113.96,175.58,175.47,5.26043775]
[1748082431215,5.695,175.54,175.48,115.8753]
[1748082431519,113.96,175.58,175.49,2.94298364]
[1748082432020,0.03695499,175.55,175.52,0.04063551]
[1748082432220,0.03695499,175.55,175.52,5.73613551]
[1748082433522,5.73175499,175.55,175.52,0.04063551]
[1748082434822,5.73175499,175.55,175.52,5.73603551]
[1748082435723,0.03695499,175.55,175.52,5.73603551]
[1748082435915,0.03695499,175.55,175.53,5.6952]
[1748082436115,0.03695499,175.55,175.52,0.04063551]
[1748082436522,0.03695499,175.55,175.52,5.73603551]
[1748082437625,5.73165499,175.55,175.52,5.73603551]
[1748082440032,5.6952,175.53,175.52,0.04063551]
[1748082444831,113.94,175.54,175.52,0.04063551]
[1748082445027,0.03695499,175.55,175.52,0.04063551]
[1748082445328,0.03695499,175.55,175.52,5.73613551]
[1748082446235,0.03695499,175.55,175.53,5.6952]
[1748082446434,0.03695499,175.55,175.52,0.04063551]
[1748082446823,0.03695499,175.55,175.53,5.695]
[1748082448533,0.03695499,175.55,175.54,5.6949]
[1748082449334,0.03695499,175.55,175.53,5.6951]
[1748082450936,0.03695499,175.55,175.52,0.04063551]
[1748082452728,5.6951,175.54,175.52,0.04063551]
[1748082453035,0.03695499,175.55,175.52,0.04063551]
[1748082454124,0.03695499,175.55,175.54,5.6949]
[1748082458735,0.03695499,175.55,175.53,5.6952]
[1748082459832,492.22,175.69,175.52,0.04063551]
[1748082460138,128.09653849,175.7,175.59,5.26043775]
[1748082460331,14.11653849,175.7,175.62,5.26043775]
[1748082460631,14.11653849,175.7,175.63,113.96]
[1748082460826,128.07653849,175.73,175.63,113.96]
[1748082461038,128.07653849,175.73,175.65,0.04024274]
[1748082461629,5.6892,175.72,175.65,0.04024274]
[1748082461831,128.07653849,175.73,175.65,0.04024274]
[1748082462638,5.6895,175.71,175.65,0.04024274]
[1748082463740,5.6899,175.7,175.65,0.04024274]
[1748082464838,5.6903,175.69,175.65,0.04024274]
[1748082465242,113.96,175.73,175.65,0.04024274]
[1748082465840,5.6903,175.69,175.65,0.04024274]
[1748082466141,113.96,175.73,175.65,0.04024274]
[1748082466546,113.96,175.73,175.66,5.6909]
[1748082467042,5.6897,175.7,175.66,5.6909]
[1748082467234,113.96,175.73,175.66,5.6909]
[1748082467642,5.6897,175.71,175.66,5.6909]
[1748082467847,113.96,175.73,175.65,0.04024274]
[1748082468347,5.6903,175.69,175.65,0.04024274]
[1748082470155,5.691,175.67,175.65,0.04024274]
[1748082470445,119.22043775,175.73,175.65,0.04024274]
[1748082471243,5.691,175.66,175.65,0.04024274]
[1748082472646,5.6907,175.67,175.65,0.04024274]
[1748082475548,5.6904,175.68,175.65,0.04024274]
[1748082478253,5.6902,175.69,175.65,5.73154274]
[1748082478550,119.22043775,175.73,175.65,0.04024274]
[1748082479854,5.69,175.7,175.66,5.691]
[1748082480150,119.22043775,175.73,175.66,5.691]
[1748082480452,5.6901,175.69,175.65,5.73144274]
[1748082480953,5.6905,175.68,175.65,0.04024274]
[1748082481353,119.22043775,175.73,175.65,0.04024274]
[1748082482254,5.6909,175.67,175.65,0.04024274]
[1748082485458,5.691,175.66,175.65,0.04024274]
[1748082489156,5.6926,175.62,175.59,113.7]
[1748082489460,5.26043775,175.67,175.59,113.7]
[1748082490060,0.03612954,175.65,175.61,0.04333446]
[1748082491264,5.6923,175.62,175.61,0.04333446]
[1748082500172,5.6941,175.57,175.53,113.74]
[1748082501373,5.73283269,175.57,175.53,113.77858629]
[1748082501572,5.73283269,175.57,175.54,5.6947]
[1748082503081,0.03873269,175.57,175.53,113.77858629]
[1748082503572,0.03873269,175.57,175.54,5.6948]
[1748082505380,0.03873269,175.57,175.55,5.6945]
[1748082505580,0.03873269,175.57,175.53,113.77858629]
[1748082506473,0.03873269,175.57,175.54,2.94289847]
[1748082506672,0.03873269,175.57,175.56,5.6943]
[1748082507474,113.58,175.64,175.61,5.6925]
[1748082508175,119.2719,175.64,175.6,5.6928]
[1748082508475,5.73314693,175.64,175.6,5.72908739]
[1748082509270,5.6921,175.63,175.6,5.72908739]
[1748082510378,5.6921,175.63,175.6,0.03628739]
[1748082510674,5.6924,175.62,175.6,0.03628739]
[1748082511873,5.6921,175.63,175.6,0.03628739]
[1748082512073,5.6921,175.63,175.6,5.72918739]
[1748082512277,0.04124693,175.64,175.6,5.72918739]
[1748082512471,5.73324693,175.64,175.6,5.72918739]
[1748082512676,0.04124693,175.64,175.6,5.72918739]
[1748082513575,5.6921,175.63,175.6,5.72918739]
[1748082514865,5.6926,175.61,175.6,0.03628739]
[1748082516380,118.82043775,175.63,175.53,113.56]
[1748082517275,0.03777769,175.6,175.56,0.03935035]
[1748082517575,5.6942,175.57,175.56,0.03935035]
[1748082521782,5.6937,175.58,175.56,0.03935035]
[1748082522280,113.58,175.59,175.56,0.03935035]
[1748082523583,5.6939,175.57,175.56,0.03935035]
[1748082525581,113.58,175.59,175.56,0.03935035]
[1748082526090,5.6938,175.58,175.56,0.03935035]
[1748082526281,113.58,175.59,175.56,0.03935035]
[1748082527591,5.6939,175.57,175.56,0.03935035]
[1748082530591,5.6937,175.58,175.56,0.03935035]
[1748082530891,113.58,175.59,175.56,0.03935035]
[1748082531093,5.6936,175.58,175.56,0.03935035]
[1748082537988,0.03777769,175.6,175.56,0.03935035]
[1748082538596,5.73077769,175.6,175.57,5.6936]
[1748082543297,5.73077769,175.6,175.58,5.6936]
[1748082543494,0.03777769,175.6,175.56,0.03935035]
[1748082544101,0.03777769,175.6,175.59,5.6933]
[1748082545898,5.6914,175.65,175.62,5.6921]
[1748082546294,119.2707,175.68,175.64,5.6916]
[1748082546495,113.58,175.68,175.64,5.6916]
[1748082546696,113.61761923,175.68,175.64,0.03838972]
[1748082547095,5.6913,175.66,175.64,0.03838972]
[1748082547300,113.61761923,175.68,175.64,0.03838972]
[1748082548488,5.6912,175.66,175.64,0.03838972]
[1748082551604,5.6913,175.65,175.64,0.03838972]
[1748082553705,113.61761923,175.68,175.64,0.03838972]
[1748082553906,0.03761923,175.68,175.64,0.03838972]
[1748082554604,5.72811923,175.68,175.65,5.6911]
[1748082555204,0.03761923,175.68,175.66,5.6908]
[1748082555417,0.03761923,175.68,175.64,0.03838972]
[1748082556409,0.03761923,175.68,175.67,5.6907]
[1748082559402,605.54,175.78,175.7,5.6896]
[1748082559602,605.54,175.78,175.66,113.54]
[1748082559803,605.54,175.78,175.66,221.72]
[1748082559804,113.54,175.78,175.66,221.72]
[1748082560211,113.54,175.78,175.7,0.04272334]
[1748082561213,5.6884,175.75,175.71,5.6891]
[1748082561512,113.52,175.8,175.7,113.56272334]
[1748082561811,5.6869,175.79,175.74,5.6882]
[1748082563414,5.6869,175.79,175.73,0.043655]
[1748082563712,113.5,175.83,175.74,113.5]
[1748082563909,113.5,175.83,175.77,0.04358869]
[1748082565808,5.6871,175.78,175.77,0.04358869]
[1748082566010,113.48,175.78,175.71,1.851]
[1748082566215,113.48,175.78,175.68,113.48]
[1748082566406,115.4641,175.78,175.68,119.1701]
[1748082566605,115.4641,175.78,175.68,113.48]
[1748082567119,0.03655424,175.75,175.71,0.04248906]
[1748082567414,5.72495424,175.75,175.71,0.04248906]
[1748082568017,5.6886,175.74,175.71,0.04248906]
[1748082568409,0.03655424,175.75,175.71,0.04248906]
[1748082569016,0.03655424,175.75,175.71,5.73188906]
[1748082569017,5.72495424,175.75,175.71,5.73188906]
[1748082569418,0.03655424,175.75,175.71,5.73188906]
[1748082569617,0.03655424,175.75,175.71,0.04248906]
[1748082570322,0.03655424,175.75,175.72,5.6891]
[1748082571630,5.72475424,175.75,175.71,5.73178906]
[1748082572328,5.72475424,175.75,175.72,5.689]
[1748082572629,0.03655424,175.75,175.71,0.04248906]
[1748082572930,0.03655424,175.75,175.72,113.44]
[1748082573438,0.03655424,175.75,175.74,5.6884]
[1748082579735,5.424e-05,175.75,175.74,5.6884]
[1748082588645,3.8559,175.89,175.83,5.6854]
[1748082588939,113.4,175.88,175.83,5.6854]
[1748082589143,113.4,175.88,175.79,113.4]
[1748082589541,5.6847,175.86,175.83,5.6855]
[1748082589745,0.02594043,175.86,175.83,0.04065201]
[1748082590039,5.71074043,175.86,175.83,0.04065201]
[1748082590243,0.02594043,175.86,175.83,0.04065201]
[1748082591146,5.6851,175.85,175.83,0.04065201]
[1748082591447,0.02594043,175.86,175.83,0.04065201]
[1748082592843,5.71074043,175.86,175.83,0.04065201]